fUSD/lending_fUSD_20240519
["ID","MTS","AMOUNT","RATE_DAILY","PERIOD"]
[327459538,1716079899216,-744.32,0.0003041,2]
[327459539,1716079899226,-500.0,0.0003041,2]
[327459540,1716079899236,-566.09,0.0003041,2]
[327459541,1716079899246,-2317.87,0.0003041,2]
[327459542,1716079899256,-1543.54,0.0003041,2]
[327459543,1716079899265,-500.0,0.0003041,2]
[327459544,1716079899275,-500.0,0.0003041,2]
[327459545,1716079899284,-1576.46,0.0003041,2]
[327459546,1716079899295,-1727.73,0.0003041,2]
[327459547,1716079899309,-1192.7,0.0003041,2]
[327459548,1716079899318,-702.53,0.0003041,2]
[327459549,1716079899328,-902.92,0.0003041,2]
[327459550,1716079899338,-500.0,0.0003041,2]
[327459551,1716079899348,-500.0,0.0003041,2]
[327459552,1716079899358,-750.17,0.0003041,2]
[327459553,1716079899368,-683.13,0.0003041,2]
[327459554,1716079899379,-1571.87,0.0003041,2]
[327459555,1716079899389,-1593.16,0.0003041,2]
[327459556,1716079899399,-1391.44,0.0003041,2]
[327459557,1716079899408,-734.3,0.0003041,2]
[327459558,1716079899418,-723.24,0.0003041,2]
[327459559,1716079899429,-765.2,0.0003041,2]
[327459560,1716079899438,-1006.36,0.0003041,2]
[327459561,1716079899448,-500.0,0.0003041,2]
[327459562,1716079899458,-1946.51,0.0003041,2]
[327459563,1716079899467,-500.0,0.0003041,2]
[327459564,1716079899477,-500.0,0.0003041,2]
[327459565,1716079899487,-737.65,0.0003041,2]
[327459566,1716079899497,-1321.13,0.0003041,2]
[327459567,1716079899507,-500.0,0.0003041,2]
[327459568,1716079899517,-340.963945,0.0003041,7]
[327459569,1716079899527,-976.72,0.0003041,2]
[327459570,1716079899538,-340.963943,0.0003041,7]
[327459571,1716079899547,-182.997182,0.0003041,7]
[327459572,1716079899557,-1844.47,0.0003041,2]
[327459573,1716079899568,-500.0,0.0003041,2]
[327459574,1716079899578,-500.0,0.0003041,2]
[327459575,1716079899587,-609.15,0.0003041,2]
[327459576,1716079899597,-892.71,0.0003041,2]
[327459577,1716079899606,-1337.56,0.0003041,2]
[327459578,1716079899615,-182.997188,0.0003041,7]
[327459579,1716079899625,-500.0,0.0003041,2]
[327459580,1716079899635,-713.62,0.0003041,2]
[327459581,1716079899645,-2601.94,0.0003041,2]
[327459582,1716079899655,-1338.29,0.0003041,2]
[327459583,1716079899665,-500.0,0.0003041,2]
[327459584,1716079899675,-877.48,0.0003041,2]
[327459585,1716079899684,-500.0,0.0003041,2]
[327459586,1716079899694,-955.29,0.0003041,2]
[327459587,1716079899704,-3753.72,0.0003041,2]
[327459588,1716079899714,-500.0,0.0003041,2]
[327459589,1716079899723,-3260.19,0.0003041,2]
[327459590,1716079899732,-2742.03,0.0003041,2]
[327459591,1716079899742,-1111.7,0.0003041,2]
[327459592,1716079899751,-1864.26,0.0003041,2]
[327459593,1716079899760,-550.17,0.0003041,2]
[327459594,1716079899769,-577.21,0.0003041,2]
[327459595,1716079899779,-1512.87,0.0003041,2]
[327459596,1716079899788,-697.0,0.0003041,2]
[327459597,1716079899798,-965.18,0.0003041,2]
[327459598,1716079899808,-679.17,0.0003041,2]
[327459599,1716079899817,-2533.85,0.0003041,2]
[327459600,1716079899826,-1281.95,0.0003041,2]
[327459601,1716079899836,-500.0,0.0003041,2]
[327459602,1716079899846,-686.8984,0.00030431,2]
[327459603,1716079899859,-157.051909,0.00030448,28]
[327459604,1716079899868,-160.0,0.000305,3]
[327459605,1716079899877,-1000.0,0.000305,2]
[327459606,1716079899887,-1518.342222,0.00030507,2]
[327459607,1716079899896,-7713.648194,0.00030507,2]
[327459608,1716079899906,-799.3246,0.00030507,2]
[327459609,1716079899916,-157.051909,0.00030548,32]
[327459610,1716079899925,-151.0,0.00030554,2]
[327459611,1716079899935,-250.49088,0.00030554,2]
[327459612,1716079899944,-150.0,0.00030575,2]
[327459613,1716079899953,-150.0,0.00030575,2]
[327459614,1716079899963,-150.0,0.00030575,2]
[327459615,1716079899972,-207.89746341,0.00030583,2]
[327459616,1716079899981,-5866.64336106,0.00030583,2]
[327459617,1716079899991,-186.64409108,0.00030584,2]
[327459618,1716079900000,-151.0,0.00030586,7]
[327459619,1716079900010,-151.0,0.00030586,7]
[327459620,1716079900019,-20350.9156456,0.00030595,2]
[327459621,1716079900029,-4143.35911,0.00030595,2]
[327459622,1716079900038,-557.0613322,0.00030595,2]
[327459623,1716079900048,-9359.5694221,0.00030595,2]
[327459624,1716079900057,-7749.1867132,0.00030595,2]
[327459625,1716079900067,-565.0277678,0.00030595,2]
[327459626,1716079900076,-30628.4992605,0.00030595,2]
[327459627,1716079900085,-2217.8574904,0.00030595,2]
[327459628,1716079900095,-464.916911,0.00030637,7]
[327459629,1716079900104,-1082.875413,0.00030637,7]
[327459630,1716079900114,-1082.875413,0.00030637,7]
[327459631,1716079900124,-150.0,0.00030648,7]
[327459632,1716079900132,-500.0,0.00030684,2]
[327459633,1716079900142,-414.60537711,0.00030684,2]
[327459634,1716079900151,-500.0,0.00030684,2]
[327459635,1716079900160,-694.12,0.00030684,2]
[327459636,1716079900169,-500.0,0.00030684,2]
[327459637,1716079900178,-500.0,0.00030684,2]
[327459638,1716079900187,-500.0,0.00030684,2]
[327459639,1716079900197,-500.0,0.00030684,2]
[327459640,1716079900206,-566.02,0.00030684,2]
[327459641,1716079900216,-500.0,0.00030684,2]
[327459642,1716079900225,-500.0,0.00030684,2]
[327459643,1716079900234,-608.41,0.00030684,2]
[327459644,1716079900244,-500.0,0.00030684,2]
[327459645,1716079900253,-1131.97,0.00030684,2]
[327459646,1716079900263,-500.0,0.00030684,2]
[327459647,1716079900273,-151.0,0.00030684,7]
[327459648,1716079900282,-579.57,0.00030684,2]
[327459649,1716079900292,-223.89456027,0.00030684,2]
[327459650,1716079900302,-500.0,0.00030684,2]
[327459651,1716079900311,-500.0,0.00030684,2]
[327459652,1716079900321,-500.0,0.00030684,2]
[327459653,1716079900331,-500.0,0.00030684,2]
[327459654,1716079900341,-500.0,0.00030684,2]
[327459655,1716079900352,-500.0,0.00030684,2]
[327459656,1716079900362,-176.063461,0.00030684,7]
[327459657,1716079900371,-176.063461,0.00030684,7]
[327459658,1716079900381,-500.0,0.00030684,2]
[327459659,1716079900391,-648.09,0.00030684,2]
[327459660,1716079900401,-523.3,0.00030684,2]
[327459661,1716079900411,-278.642658,0.00030684,7]
[327459662,1716079900421,-500.0,0.00030684,2]
[327459663,1716079900431,-532.81295598,0.00030684,2]
[327459664,1716079900441,-278.642658,0.00030684,7]
[327459665,1716079900450,-558.63,0.00030684,2]
[327459666,1716079900459,-799.77,0.00030684,2]
[327459667,1716079900469,-591.98,0.00030684,2]
[327459668,1716079900478,-892.31,0.00030684,2]
[327459669,1716079900488,-500.0,0.00030684,2]
[327459670,1716079900497,-655.12,0.00030684,2]
[327459671,1716079900507,-616.57,0.00030684,2]
[327459672,1716079900516,-517.62,0.00030684,2]
[327459673,1716079900525,-500.0,0.00030684,2]
[327459674,1716079900535,-500.0,0.00030684,2]
[327459675,1716079900545,-500.0,0.00030684,2]
[327459676,1716079900555,-602.52,0.00030684,2]
[327459677,1716079900565,-500.0,0.00030684,2]
[327459678,1716079900575,-500.0,0.00030684,2]
[327459679,1716079900585,-840.77,0.00030684,2]
[327459680,1716079900594,-500.0,0.00030684,2]
[327459681,1716079900603,-608.64,0.00030684,2]
[327459682,1716079900613,-536.02,0.00030684,2]
[327459683,1716079900622,-1106.38,0.00030684,2]
[327459684,1716079900632,-500.0,0.00030684,2]
[327459685,1716079900641,-500.0,0.00030684,2]
[327459686,1716079900650,-500.0,0.00030684,2]
[327459687,1716079900659,-500.0,0.00030684,2]
[327459688,1716079900668,-957.21,0.00030684,2]
[327459689,1716079900678,-1257.0,0.00030684,2]
[327459690,1716079900687,-500.0,0.00030684,2]
[327459691,1716079900696,-1352.16,0.00030684,2]
[327459692,1716079900706,-500.0,0.00030684,2]
[327459693,1716079900715,-684.6,0.00030684,2]
[327459694,1716079900724,-1072.66,0.00030684,2]
[327459695,1716079900734,-849.73,0.00030684,2]
[327459696,1716079900743,-500.0,0.00030684,2]
[327459697,1716079900753,-874.66,0.00030684,2]
[327459698,1716079900763,-585.08,0.00030684,2]
[327459699,1716079900772,-1990.29,0.00030684,2]
[327459700,1716079900781,-545.44,0.00030684,2]
[327459701,1716079900792,-1243.99,0.00030684,2]
[327459702,1716079900801,-624.63242547,0.00030684,2]
[327459703,1716079900811,-750.45,0.00030684,2]
[327459704,1716079900820,-748.72,0.00030684,2]
[327459705,1716079900829,-1292.43,0.00030684,2]
[327459706,1716079900840,-846.9,0.00030684,2]
[327459707,1716079900850,-1250.19,0.00030684,2]
[327459708,1716079900865,-1236.365457,0.00030684,2]
[327459709,1716079900882,-227.004543,0.00030684,2]
[327459710,1716079900892,-500.0,0.00030684,2]
[327459711,1716079900902,-530.63,0.00030684,2]
[327459712,1716079900911,-406.00967368,0.00030684,2]
[327459713,1716079901358,-276.90558802,0.00017259,2]
[327459714,1716079901373,-3338.89599342,0.00017259,2]
[327459715,1716079901383,-530.00038718,0.00027396,2]
[327459716,1716079901392,-8696.88,0.00027397,2]
[327459717,1716079901402,-500.0,0.00027397,2]
[327459718,1716079901411,-5522.44,0.00027397,2]
[327459719,1716079901421,-500.0,0.00027671,2]
[327459720,1716079901430,-8696.88,0.00027671,2]
[327459721,1716079901440,-5522.44,0.00027671,2]
[327459722,1716079901449,-8696.88,0.00027945,2]
[327459723,1716079901459,-5522.44,0.00027945,2]
[327459724,1716079901468,-8696.88,0.00028219,2]
[327459725,1716079901478,-5522.44,0.00028219,2]
[327459726,1716079901487,-8696.88,0.00028493,2]
[327459727,1716079901497,-8696.88,0.00028767,2]
[327459728,1716079901506,-8696.88,0.00029041,2]
[327459729,1716079901516,-500.0,0.00029315,2]
[327459730,1716079901526,-8696.88,0.00029315,2]
[327459731,1716079901536,-500.0,0.00029589,2]
[327459732,1716079901546,-8696.88,0.00029589,2]
[327459733,1716079901555,-500.0,0.00029863,2]
[327459734,1716079901565,-500.0,0.00030136,2]
[327459735,1716079901574,-193.91,0.0003041,2]
[327459736,1716079901583,-93.99032632,0.00030684,2]
[327459737,1716079901592,-843.77,0.00030684,2]
[327459738,1716079901601,-1072.07,0.00030684,2]
[327459739,1716079901611,-500.0,0.00030684,2]
[327459740,1716079901621,-896.67,0.00030684,2]
[327459741,1716079901631,-500.0,0.00030684,2]
[327459742,1716079901641,-319.688279,0.00030684,7]
[327459743,1716079901651,-733.96,0.00030684,2]
[327459744,1716079901661,-1493.69,0.00030684,2]
[327459745,1716079901670,-319.688282,0.00030684,7]
[327459746,1716079901680,-996.4,0.00030684,2]
[327459747,1716079901689,-500.0,0.00030684,2]
[327459748,1716079901699,-500.0,0.00030684,2]
[327459749,1716079901708,-1067.83,0.00030684,2]
[327459750,1716079901717,-717.91,0.00030684,2]
[327459751,1716079901726,-464.916368,0.00030684,7]
[327459752,1716079901736,-671.98,0.00030684,2]
[327459753,1716079901745,-464.916358,0.00030684,7]
[327459754,1716079901756,-414.26,0.00030684,2]
[327459755,1716079901765,-500.0,0.00030684,2]
[327459756,1716079901774,-637.51,0.00030684,2]
[327459757,1716079901783,-709.05,0.00030684,2]
[327459758,1716079901794,-151.0,0.00030684,7]
[327459759,1716079901805,-1264.55,0.00030684,2]
[327459760,1716079901814,-500.0,0.00030684,2]
[327459761,1716079901824,-753.77,0.00030684,2]
[327459762,1716079901833,-500.0,0.00030684,2]
[327459763,1716079901843,-1101.63,0.00030684,2]
[327459764,1716079901852,-1105.23,0.00030684,2]
[327459765,1716079901864,-516.07,0.00030684,2]
[327459766,1716079901874,-500.0,0.00030684,2]
[327459767,1716079901883,-886.43804728,0.00030684,2]
[327459768,1716079901898,-130.28195272,0.00030684,2]
[327459769,1716079901907,-500.0,0.00030684,2]
[327459770,1716079901916,-1552.71,0.00030684,2]
[327459771,1716079901926,-1614.27,0.00030684,2]
[327459772,1716079901935,-822.34,0.00030684,2]
[327459773,1716079901944,-745.19,0.00030684,2]
[327459774,1716079901954,-500.0,0.00030684,2]
[327459775,1716079901963,-861.8,0.00030684,2]
[327459776,1716079901972,-500.0,0.00030684,2]
[327459777,1716079901982,-500.0,0.00030684,2]
[327459778,1716079901992,-867.38,0.00030684,2]
[327459779,1716079902001,-790.2,0.00030684,2]
[327459780,1716079902011,-908.09,0.00030684,2]
[327459781,1716079902020,-500.0,0.00030684,2]
[327459782,1716079902029,-2847.34,0.00030684,2]
[327459783,1716079902038,-215.09104658,0.00030684,2]
[327459784,1716079902047,-637.44,0.00030684,2]
[327459785,1716079902057,-879.34,0.00030684,2]
[327459786,1716079902066,-500.0,0.00030684,2]
[327459787,1716079902076,-1800.44,0.00030684,2]
[327459788,1716079902085,-751.88,0.00030684,2]
[327459789,1716079902094,-690.03,0.00030684,2]
[327459790,1716079902103,-1239.57,0.00030684,2]
[327459791,1716079902112,-694.45,0.00030684,2]
[327459792,1716079902121,-500.0,0.00030684,2]
[327459793,1716079902130,-500.0,0.00030684,2]
[327459794,1716079902140,-2258.52,0.00030684,2]
[327459795,1716079902150,-582.13,0.00030684,2]
[327459796,1716079902160,-663.78,0.00030684,2]
[327459797,1716079902169,-663.37,0.00030684,2]
[327459798,1716079902179,-596.02,0.00030684,2]
[327459799,1716079902188,-2187.67,0.00030684,2]
[327459800,1716079902197,-500.0,0.00030684,2]
[327459801,1716079902206,-897.21,0.00030684,2]
[327459802,1716079902215,-1986.87,0.00030684,2]
[327459803,1716079902224,-567.98,0.00030684,2]
[327459804,1716079902233,-643.54,0.00030684,2]
[327459805,1716079902243,-2292.47,0.00030684,2]
[327459806,1716079902253,-500.0,0.00030684,2]
[327459807,1716079902262,-8969.82,0.00030684,2]
[327459808,1716079902272,-702.64,0.00030684,2]
[327459809,1716079902281,-1618.24,0.00030684,2]
[327459810,1716079902292,-500.0,0.00030684,2]
[327459811,1716079902301,-7341.3,0.00030684,2]
[327459812,1716079902310,-859.92,0.00030684,2]
[327459813,1716079902319,-597.52,0.00030684,2]
[327459814,1716079902329,-2396.63,0.00030684,2]
[327459815,1716079902339,-847.62,0.00030684,2]
[327459816,1716079902349,-676.53,0.00030684,2]
[327459817,1716079902359,-813.35,0.00030684,2]
[327459818,1716079902368,-1434.0,0.00030684,2]
[327459819,1716079902378,-9386.79,0.00030684,2]
[327459820,1716079902388,-756.32,0.00030684,2]
[327459821,1716079902398,-20401.86789789,0.00030684,2]
[327459822,1716079902412,-1850.25890307,0.00030684,2]
[327459823,1716079902425,-3435.65152951,0.00030684,2]
[327459824,1716079902436,-1757.34489029,0.00030684,2]
[327459825,1716079902447,-965.04287005,0.00030684,2]
[327459826,1716079902458,-1179.62745,0.00030684,2]
[327459827,1716079902470,-685.48645919,0.00030684,2]
[327459828,1716079902479,-4020.85,0.00030684,2]
[327459829,1716079902488,-762.31,0.00030684,2]
[327459830,1716079902497,-1856.14,0.00030684,2]
[327459831,1716079902508,-2166.31354081,0.00030684,2]
[327459832,1716079902520,-777.12840395,0.00030684,2]
[327459833,1716079902532,-404.4192757,0.00030684,2]
[327459834,1716079902544,-1473.22877954,0.00030684,2]
[327459835,1716079902553,-1175.05,0.00030684,2]
[327459836,1716079902562,-768.86,0.00030684,2]
[327459837,1716079902572,-614.98,0.00030684,2]
[327459838,1716079902581,-500.0,0.00030684,2]
[327459839,1716079902591,-2108.53638071,0.00030684,2]
[327459840,1716079902611,-500.0,0.00027397,2]
[327459841,1716079902621,-48.33070239,0.00029863,2]
[327459842,1716079902660,-500.0,0.00029863,2]
[327459843,1716079902671,-465.45006,0.00029863,2]
[327459844,1716079902682,-729.0,0.00029863,2]
[327459845,1716079902698,-2455.39834811,0.00028493,2]
[327459846,1716079902711,-3067.04165189,0.00028493,2]
[327459847,1716079902720,-4786.43239943,0.00029863,2]
[327459848,1716079910250,3500.0,0.0003,90]
[327459849,1716079947465,215.92,0.00027258,120]
[327459850,1716080167281,200.0,0.0003,90]
[327459851,1716080376799,164.0,0.0003,90]
[327459867,1716081031802,-588.71486484,0.00020442,2]
[327459868,1716081031849,-411.28513516,0.00020442,2]
[327459869,1716081031859,-1000.0,0.00020443,2]
[327459870,1716081031870,-2547.28889531,0.000225,2]
[327459871,1716081031880,-197.59,0.00023373,2]
[327459872,1716081031890,-499.99,0.00024582,2]
[327459873,1716081031900,-224.99,0.00024582,5]
[327459874,1716081031911,-5037.63,0.00024656,2]
[327459875,1716081031922,-150.99,0.00024656,2]
[327459876,1716081031932,-494.67925643,0.00024656,2]
[327459877,1716081031945,-111.61925483,0.00024656,2]
[327459878,1716081031955,-169.18,0.00025027,2]
[327459879,1716081031965,-608.54,0.00025068,2]
[327459880,1716081031976,-2736.0186348,0.00025068,2]
[327459881,1716081031987,-3400.39942654,0.00025068,2]
[327459882,1716081031999,-672.3424,0.00025068,2]
[327459883,1716081032676,-3210.7,0.00025068,2]
[327459899,1716081037888,-420.595,0.00025068,2]
[327459900,1716081037930,-13459.94453866,0.00025068,2]
[327459901,1716081037941,-399.73,0.00025074,2]
[327459902,1716081037951,-1871.29,0.00025082,3]
[327459903,1716081037960,-250.0,0.0002511,2]
[327459904,1716081037971,-459.14,0.00025111,2]
[327459905,1716081037981,-250.0,0.00025129,2]
[327459906,1716081037990,-250.0,0.00025181,2]
[327459907,1716081038000,-191.34,0.00025202,2]
[327459908,1716081038011,-150.0,0.00025203,2]
[327459909,1716081038020,-162.83,0.00025262,2]
[327459910,1716081038031,-600.27,0.00025339,2]
[327459911,1716081038041,-197.59,0.00025637,2]
[327459912,1716081038050,-162.83,0.00025921,2]
[327459913,1716081038061,-161.03,0.00026051,2]
[327459914,1716081038071,-161.03,0.00026062,2]
[327459915,1716081038081,-161.03,0.00026073,2]
[327459916,1716081038090,-161.03,0.00026084,2]
[327459917,1716081038100,-161.03,0.00026095,2]
[327459918,1716081038110,-161.03,0.00026106,2]
[327459919,1716081038120,-161.03,0.00026116,2]
[327459920,1716081038129,-161.03,0.00026127,2]
[327459921,1716081038140,-161.03,0.00026138,2]
[327459922,1716081038150,-161.03,0.00026149,2]
[327459923,1716081038159,-161.03,0.0002616,2]
[327459924,1716081038169,-161.03,0.00026171,2]
[327459925,1716081038179,-161.03,0.00026182,2]
[327459926,1716081038189,-256.834,0.00026545,2]
[327459927,1716081038199,-162.83,0.00026579,2]
[327459928,1716081038209,-298.1070515,0.00026634,2]
[327459929,1716081038218,-154.143,0.00026635,2]
[327459930,1716081038228,-973.0,0.00026645,2]
[327459931,1716081038238,-2159.0,0.00026645,2]
[327459932,1716081038249,-809.0,0.00026645,2]
[327459933,1716081038258,-444.0,0.00026645,2]
[327459934,1716081038268,-439.0,0.00026645,2]
[327459935,1716081038278,-164.0,0.00026645,2]
[327459936,1716081038289,-612.0,0.00026645,2]
[327459938,1716081038298,-150.0,0.00026645,2]
[327459939,1716081038308,-1013.01993467,0.00026645,2]
[327459940,1716081038319,-963.98006533,0.00026645,2]
[327459941,1716081038329,-1647.0,0.00026645,2]
[327459942,1716081038339,-150.0,0.00026645,2]
[327459943,1716081038348,-215.0,0.00026645,2]
[327459944,1716081038358,-836.759,0.00026645,2]
[327459945,1716081038367,-1137.0,0.00026645,2]
[327459946,1716081038377,-1223.49865729,0.00026645,2]
[327459947,1716081038397,-1467.73390285,0.00026645,2]
[327459948,1716081038409,-3223.76743986,0.00026645,2]
[327459949,1716081038418,-37862.0,0.00026645,2]
[327459950,1716081038428,-1464.0,0.00026645,2]
[327459951,1716081038438,-289.0,0.00026645,2]
[327459952,1716081038448,-4770.10256014,0.00026645,2]
[327459953,1716081038464,-983.89743986,0.00026645,2]
[327459954,1716081038474,-1102.0,0.00026645,2]
[327459955,1716081038485,-645.54100972,0.00027,2]
[327459956,1716081038498,-908.45899028,0.00027,2]
[327459957,1716081038507,-169.66721492,0.00027258,2]
[327459958,1716081038517,-784.2971908,0.00027297,2]
[327459959,1716081038531,-215.7028092,0.00027297,2]
[327459960,1716081038543,-153.039804,0.00027297,2]
[327459961,1716081038553,-4050.74212394,0.00027297,2]
[327459962,1716081038563,-853.69,0.00027387,3]
[327459963,1716081038573,-3148.28246,0.00027395,2]
[327459964,1716081038582,-1270.50192844,0.00027395,2]
[327459965,1716081038593,-743.33228068,0.00027395,2]
[327459966,1716081038603,-353.39866831,0.00027395,2]
[327459967,1716081038613,-10050.25164233,0.00027396,2]
[327459968,1716081038622,-200.0,0.00027397,2]
[327459969,1716081038632,-500.0,0.00027397,2]
[327459970,1716081038642,-500.0,0.00027397,2]
[327459971,1716081038651,-500.0,0.00027397,2]
[327459972,1716081038661,-500.0,0.00027397,2]
[327459973,1716081038670,-500.0,0.00027397,2]
[327459974,1716081038679,-500.0,0.00027397,2]
[327459975,1716081038690,-500.0,0.00027397,2]
[327459976,1716081038699,-500.0,0.00027397,2]
[327459977,1716081038709,-500.0,0.00027397,2]
[327459978,1716081038718,-500.0,0.00027397,2]
[327459979,1716081038727,-504.26436213,0.00027397,2]
[327459980,1716081038737,-512.8528268,0.00027397,2]
[327459981,1716081038747,-500.0,0.00027397,2]
[327459982,1716081038756,-508.4502017,0.00027397,2]
[327459983,1716081038766,-500.0,0.00027397,2]
[327459984,1716081038776,-500.0,0.00027397,2]
[327459985,1716081038785,-223.09085882,0.00027397,2]
[327459986,1716081038795,-500.0,0.00027397,2]
[327459987,1716081038804,-500.0,0.00027397,2]
[327459988,1716081038814,-500.0,0.00027397,2]
[327459989,1716081038823,-500.0,0.00027397,2]
[327459990,1716081038833,-500.0,0.00027397,2]
[327459991,1716081038843,-500.0,0.00027397,2]
[327459992,1716081038854,-500.0,0.00027397,2]
[327459993,1716081038864,-502.20494281,0.00027397,2]
[327459994,1716081038873,-500.0,0.00027397,2]
[327459995,1716081038882,-500.0,0.00027397,2]
[327459996,1716081038892,-500.0,0.00027397,2]
[327459997,1716081038901,-500.0,0.00027397,2]
[327459998,1716081038911,-500.0,0.00027397,2]
[327459999,1716081038920,-500.0,0.00027397,2]
[327460000,1716081038930,-500.0,0.00027397,2]
[327460001,1716081038940,-500.0,0.00027397,2]
[327460002,1716081038949,-500.0,0.00027397,2]
[327460003,1716081038959,-501.81448776,0.00027397,2]
[327460004,1716081038968,-500.0,0.00027397,2]
[327460005,1716081038977,-500.0,0.00027397,2]
[327460006,1716081038987,-500.0,0.00027397,2]
[327460007,1716081038996,-500.0,0.00027397,2]
[327460008,1716081039006,-500.0,0.00027397,2]
[327460009,1716081039016,-500.0,0.00027397,2]
[327460010,1716081039026,-500.0,0.00027397,2]
[327460011,1716081039036,-500.0,0.00027397,2]
[327460012,1716081039045,-513.04533274,0.00027397,2]
[327460013,1716081039055,-500.0,0.00027397,2]
[327460014,1716081039064,-495.1259847,0.00027397,2]
[327460015,1716081039074,-521.71670954,0.00027397,2]
[327460016,1716081039083,-500.0,0.00027397,2]
[327460017,1716081039093,-500.0,0.00027397,2]
[327460018,1716081039103,-500.0,0.00027397,2]
[327460019,1716081039113,-500.0,0.00027397,2]
[327460020,1716081039122,-570.31887382,0.00027397,2]
[327460021,1716081039132,-500.0,0.00027397,2]
[327460022,1716081039141,-500.0,0.00027397,2]
[327460023,1716081039150,-500.0,0.00027397,2]
[327460024,1716081039159,-500.0,0.00027397,2]
[327460025,1716081039169,-500.0,0.00027397,2]
[327460026,1716081039179,-500.0,0.00027397,2]
[327460027,1716081039188,-469.19270174,0.00027397,2]
[327460028,1716081039197,-500.0,0.00027397,2]
[327460029,1716081039208,-500.0,0.00027397,2]
[327460030,1716081039216,-619.74,0.00027397,2]
[327460031,1716081039231,-500.0,0.00027397,2]
[327460032,1716081039241,-500.0,0.00027397,2]
[327460033,1716081039251,-500.0,0.00027397,2]
[327460034,1716081039260,-500.0,0.00027397,2]
[327460035,1716081039270,-500.0,0.00027397,2]
[327460036,1716081039279,-500.0,0.00027397,2]
[327460037,1716081039289,-500.0,0.00027397,2]
[327460038,1716081039300,-912.22,0.00027397,2]
[327460039,1716081039310,-500.0,0.00027397,2]
[327460040,1716081039320,-500.0,0.00027397,2]
[327460041,1716081039330,-500.0,0.00027397,2]
[327460042,1716081039340,-500.0,0.00027397,2]
[327460043,1716081039350,-500.0,0.00027397,2]
[327460044,1716081039360,-500.0,0.00027397,2]
[327460045,1716081039369,-500.0,0.00027397,2]
[327460046,1716081039379,-500.0,0.00027397,2]
[327460047,1716081039388,-573.0,0.00027397,2]
[327460048,1716081039398,-500.0,0.00027397,2]
[327460049,1716081039407,-500.0,0.00027397,2]
[327460050,1716081039417,-500.0,0.00027397,2]
[327460051,1716081039427,-500.0,0.00027397,2]
[327460052,1716081039437,-500.0,0.00027397,2]
[327460053,1716081039447,-500.0,0.00027397,2]
[327460054,1716081039462,-500.0,0.00027397,2]
[327460055,1716081039474,-963.19,0.00027397,2]
[327460056,1716081039485,-500.0,0.00027397,2]
[327460057,1716081039494,-500.0,0.00027397,2]
[327460058,1716081039503,-500.0,0.00027397,2]
[327460059,1716081039513,-500.0,0.00027397,2]
[327460060,1716081039523,-203.33999331,0.00027397,2]
[327460061,1716081039534,-500.0,0.00027397,2]
[327460062,1716081039543,-500.0,0.00027397,2]
[327460063,1716081039553,-500.0,0.00027397,2]
[327460064,1716081039563,-500.0,0.00027397,2]
[327460065,1716081039573,-500.0,0.00027397,2]
[327460066,1716081039584,-500.0,0.00027397,2]
[327460067,1716081039594,-500.0,0.00027397,2]
[327460068,1716081039604,-1116.79,0.00027397,2]